Cogmind - Beta 17 @@@ ROGUE MODE // 2026.07.02 @ 16:56:24 Player: Dull Result: Destroyed by X-57 Shotgunner with Shotgun Performance ------------- Evolutions (2) 1000 Regions Visited (3) 600 Robots Destroyed (28) 140 Value Destroyed (568) 568 Prototype IDs (1) 20 Alien Tech Used (0) 0 Bonus (0) 0 TOTAL SCORE: 2328 Bonus ------- None Cogmind --------- Core Integrity 0/550 Matter 285/300 Energy 100/100 System Corruption 0% Temperature Cool (0) Movement Core (50) Location -8/Materials Parts ------- > --- POWER (1) -------- (None) > --- PROPULSION (4) --- (None) > --- UTILITY (4) ------ Improved Signal Interpreter > --- WEAPON (2) ------- (None) > --- INVENTORY (5) ---- Light Treads Improved Flight Unit Cooling System Improved Signal Interpreter Light Armor Plating Peak State ------------ > --- POWER ------------ Ion Engine > --- PROPULSION ------- Light Treads Light Treads Light Treads Wheel > --- UTILITY ---------- Huge Storage Unit Improved Sensor Array Improved Signal Interpreter Hacking Suite > --- WEAPON ----------- Heavy Assault Rifle Minigun > --- INVENTORY -------- Ion Engine Ion Engine Light Treads Aluminum Leg Aluminum Leg Compact Wheel Improved Flight Unit Heat Sink Cooling System Large Storage Unit Improved Signal Interpreter Improved Signal Interpreter Improved Signal Interpreter Light Armor Plating Hardlight Generator Tractor Beam Small Laser Small Laser Hammer [Rating: 23] Favorites ----------- Power Ion Engine Engine Ion Engine Propulsion Light Treads Treads Light Treads Leg Aluminum Leg Wheel Wheel Utility Huge Storage Unit Device Heat Sink Storage Huge Storage Unit Processor Improved Signal Interpreter Hackware Hacking Suite Weapon Small Laser Energy Gun Small Laser Ballistic Gun Minigun Impact Weapon Hammer Build | -11 -10 -10 -8 ------- Run | Yrd Mat Sub Mat Slots Evolved 4 | . . . 4 Power . | . . . . Propulsion 2 | . . . 2 Utility 2 | . . . 2 Weapon . | . . . . Parts Attached 26 | 3 6 1 16 Power 3 | . 1 . 2 Engine 3 | . 1 . 2 Core . | . . . . Reactor . | . . . . Propulsion 8 | 2 . . 6 Treads 6 | 2 . . 4 Leg . | . . . . Wheel 2 | . . . 2 Hover . | . . . . Flight . | . . . . Utility 8 | . 4 . 4 Device 2 | . 1 . 1 Storage 3 | . 3 . . Processor 2 | . . . 2 Hackware 1 | . . . 1 Protection . | . . . . Artifact . | . . . . Weapon 7 | 1 1 1 4 Energy Gun 4 | 1 1 1 1 Energy Cannon . | . . . . Ballistic Gun 2 | . . . 2 Ballistic Cannon . | . . . . Launcher . | . . . . Special Weapon . | . . . . Impact Weapon 1 | . . . 1 Slashing Weapon . | . . . . Piercing Weapon . | . . . . Special Melee Weapon . | . . . . Unidentified Prototypes 1 | . . . 1 Parts Lost 15 | . . 1 14 Power 1 | . . . 1 Propulsion 8 | . . . 8 Utility 2 | . . . 2 Weapon 4 | . . 1 3 Highest Loss Streak 11 | . . 1 11 To Critical Strikes 1 | . . . 1 Average Backups 12 | 5 9 14 14 Power 1 | 1 1 1 1 Propulsion 5 | 4 5 6 4 Utility 3 | . . 3 5 Weapon 3 | . 2 4 2 Tool/Special . | . . . . Unused Backups 18 | . 3 . 15 Power 2 | . 1 . 1 Propulsion 4 | . . . 4 Utility 10 | . 2 . 8 Weapon 2 | . . . 2 Tool/Special . | . . . . Average Slot Usage (%) 90 | . 95 100 80 Engine 11 | . 14 14 8 Treads 24 | . 28 28 18 Device 10 | . 10 14 8 Storage 11 | . 14 14 9 Processor 3 | . . . 8 Hackware 3 | . . . 8 Energy Gun 19 | . 26 28 9 Ballistic Gun 3 | . . . 8 Peak Build Rating 23 | 6 8 8 23 Average Rating 11 | 5 7 8 17 On Entrance 6 | 6 5 8 8 Avg Prop Armor Cover (%) 21 | . . . 21 Naked Turns . | . . . . Heaviest Build 92 | 11 88 88 92 Greatest Support 80 | 40 40 40 80 Greatest Overweight (x) 27 | . 2 2 27 Average Overweight (x) 1 | . . 2 3 Largest Inventory Capacity 25 | 8 25 25 25 Average Capacity 21 | 8 15 25 24 Most Carried 19 | 6 15 15 19 Average Carried 12 | 5 9 14 14 Final Capacity 25 | 8 25 25 5 Final Carried 15 | 5 15 14 5 Class Distribution -------------------- 95% | Mutant 4% | Scavenger-Mutant Dominant Class ---------------- Mutant | -10/Materials Mutant | -10/Subcaves Mutant | -8/Materials Resources | -11 -10 -10 -8 ----------- Run | Yrd Mat Sub Mat Matter Collected 513 | 230 45 15 223 Remotely . | . . . . Salvage Created 1004 | . 389 103 512 Parts 58 | . 24 7 27 Haulers Intercepted 2 | . 1 . 1 Recyclers Shooed 2 | . 1 . 1 Parts Field Recycled . | . . . . Retrieved Matter . | . . . . Parts Self-Destructed 5 | . . 5 . Prevented . | . . . . Parts Restored . | . . . . Kills | -11 -10 -10 -8 ------- Run | Yrd Mat Sub Mat Combat Hostiles Destroyed 18 | . 9 2 7 Guns 18 | . 9 2 7 Classes Destroyed 9 | . 5 1 3 Worker 3 | . 1 . 2 Builder 1 | . . . 1 Hauler 2 | . 1 . 1 Recycler 2 | . . . 2 Watcher 2 | . 1 . 1 Swarmer 7 | . 3 . 4 Grunt 8 | . 6 . 2 Sentry 1 | . . . 1 Subdweller 2 | . . 2 . Best Kill Streak 5 | . 3 2 5 Combat Bots Only 4 | . 3 2 4 Max Kills in Single Turn 2 | . 1 1 2 Gunslinging 1 | . . . 1 Exploded . | . . . . Melee . | . . . . Uniques/NPCs Destroyed . | . . . . Combat | -11 -10 -10 -8 -------- Run | Yrd Mat Sub Mat Hostile Shots Fired 230 | . 49 22 159 Missed 74 | . 13 8 53 Hits 156 | . 36 14 106 Projectile 156 | . 36 14 106 Critical Strikes 4 | . . 1 3 Damage Taken 2357 | . 359 339 1659 Core 787 | . 105 128 554 Absorbed by Shields . | . . . . Core Remaining (%) 53 | 100 . 6 . Volleys Fired 86 | . 42 9 35 Largest 2 | . 2 2 2 Hottest 80 | . 80 80 80 Shots Fired 165 | . 81 18 66 Gun 165 | . 81 18 66 Cannon . | . . . . Launcher . | . . . . Special . | . . . . Kinetic 37 | . . . 37 Thermal 128 | . 81 18 29 Explosive . | . . . . Electromagnetic . | . . . . Robot Hit Streak 17 | . 8 16 17 Robot Miss Streak 5 | . 5 2 3 Penetration Max . | . . . . Secondary Targets 3 | . . 1 2 Max Gunslinging Chain 1 | . . 1 1 Shots Hit Robots 108 | . 46 16 46 Core Hits 48 | . 23 6 19 Critical Kills . | . . . . Critical Parts Destroyed . | . . . . Critical Strikes . | . . . . Melee Attacks 1 | . . . 1 Impact 1 | . . . 1 Slashing . | . . . . Piercing . | . . . . Sneak Attacks . | . . . . Combat Hostiles . | . . . . Follow-up Attacks . | . . . . Damage Inflicted 1437 | . 538 177 722 Guns 1436 | . 537 177 722 Cannons . | . . . . Explosions . | . . . . Melee . | . . . . Ramming 1 | . 1 . . Kinetic 506 | . . . 506 Thermal 930 | . 537 177 216 Explosive . | . . . . Electromagnetic . | . . . . Impact . | . . . . Slashing . | . . . . Piercing . | . . . . Highest Corruption . | . . . . Average Corruption . | . . . . Corruption Purged . | . . . . Corruption Blocked . | . . . . Overload Shots . | . . . . Overflow Damage . | . . . . Projectiles . | . . . . Explosions . | . . . . Melee . | . . . . Knockbacks . | . . . . Impact . | . . . . Kinetic . | . . . . Secondary . | . . . . Self-Inflicted Damage . | . . . . Shots . | . . . . Rammed 1 | . 1 . . Targets Rammed 1 | . 1 . . Kicked . | . . . . Crushed . | . . . . Highest Temperature 188 | . 156 . 188 Average Temperature 36 | . 43 . 27 Received Heat Transfer 279 | . 156 42 81 Siege Activations . | . . . . Martial Activations . | . . . . Shielding Activations . | . . . . Robots Disrupted . | . . . . Combat Hostiles . | . . . . Robots Corrupted . | . . . . Combat Hostiles . | . . . . Parts Fried . | . . . . Impact Corruptions . | . . . . Robots Melted . | . . . . Combat Hostiles . | . . . . Parts Melted 6 | . 3 3 . Heat Transferred 2100 | . 1225 400 475 Parts Sabotaged . | . . . . Parts Stolen . | . . . . Parts Stripped . | . . . . Power Chain Reactions . | . . . . Alert | -11 -10 -10 -8 ------- Run | Yrd Mat Sub Mat Maximum Alert Level . | . . . . Low Security (%) 100 | 100 100 . 100 Level 1 . | . . . . Level 2 . | . . . . Level 3 . | . . . . Level 4 . | . . . . Level 5 . | . . . . High Security . | . . . . Max Security . | . . . . Peak Influence 85 | . 85 . 70 Initial . | . . . . Average 14 | . 18 . 11 Influence Increases 483 | . 254 . 229 Destroy 0b10 Robot/C 320 | . 180 . 140 Destroy 0b10 Robot/NC 50 | . 15 . 35 Destroy Leader 68 | . 44 . 24 Disable Machine 15 | . . . 15 Lose Combat Pursuer 30 | . 15 . 15 Influence Decreases 483 | . 247 7 229 Entered New Map 4 | . . 4 . Time Decay 439 | . 247 3 189 Lost Part 40 | . . . 40 Squads Dispatched 4 | . 3 . 1 Investigation 1 | . 1 . . Extermination . | . . . . Reinforcement 3 | . 2 . 1 Assault . | . . . . Garrison . | . . . . Intercept . | . . . . Searches Triggered . | . . . . Construction Impeded . | . . . . Haulers Reinforced . | . . . . Active Scanning Responses . | . . . . Cargo Convoy Interrupts . | . . . . Stealth | -11 -10 -10 -8 --------- Run | Yrd Mat Sub Mat Distress Signals 2 | . . . 2 Communications Jammed . | . . . . Distress Signals . | . . . . Times Spotted 33 | . 13 2 18 Peak Tracking Total 4 | . 3 2 4 Tactical Retreats 2 | . 1 . 1 Traps | -11 -10 -10 -8 ------- Run | Yrd Mat Sub Mat Traps Triggered 1 | . . 1 . Indirectly . | . . . . Trap Hack Attempts . | . . . . Triggered . | . . . . Disarmed . | . . . . Reprogrammed . | . . . . Reused . | . . . . Traps Extracted . | . . . . Installed . | . . . . Triggered . | . . . . Machines | -11 -10 -10 -8 ---------- Run | Yrd Mat Sub Mat Machines Disabled 1 | . . . 1 Max in Single Turn 1 | . . . 1 Machines Repaired . | . . . . Machines Dismantled . | . . . . Machines Sabotaged . | . . . . Overloaded Fab Kills . | . . . . Hacking | -11 -10 -10 -8 --------- Run | Yrd Mat Sub Mat Machines Accessed 9 | . 6 . 3 Terminals 8 | . 5 . 3 Fabricators . | . . . . Repair Stations . | . . . . Recycling Units 1 | . 1 . . Scanalyzers . | . . . . Garrison Access . | . . . . Total Hacks 19 | . 13 . 6 Successful 5 | . 2 . 3 Failed 14 | . 11 . 3 Catastrophic 2 | . 2 . . Database Lockouts . | . . . . Manual 16 | . 12 . 4 Terminals 18 | . 12 . 6 Fabricators . | . . . . Repair Stations . | . . . . Recycling Units 1 | . 1 . . Scanalyzers . | . . . . Garrison Access . | . . . . Terminal Hacks 2 | . 1 . 1 Robot Analysis 2 | . 1 . 1 Fabricator Hacks . | . . . . Repair Station Hacks . | . . . . Recycling Unit Hacks 1 | . 1 . . Retrieve Components 1 | . 1 . . Scanalyzer . | . . . . Garrison Access Hacks . | . . . . Unauthorized Hacks 2 | . . . 2 Terminals 2 | . . . 2 Botnet 2 | . . . 2 Fabricators . | . . . . Repair Stations . | . . . . Recycling Units . | . . . . Scanalyzers . | . . . . Garrison Access . | . . . . Data Cores Recovered . | . . . . Used . | . . . . Hacking Detections 9 | . 6 . 3 Full Trace Events 1 | . 1 . . Feedback Events . | . . . . Feedback Blocked . | . . . . Robot Schematics Acquired . | . . . . Robots Built . | . . . . Authchips . | . . . . Time . | . . . . Total Robot Build Rating . | . . . . Part Schematics Acquired . | . . . . Parts Built . | . . . . Authchips . | . . . . Time . | . . . . Total Part Build Rating . | . . . . Part Studies Acquired . | . . . . Parts Repaired . | . . . . Time . | . . . . Parts Recycled . | . . . . Recycled Matter . | . . . . Retrieved Matter . | . . . . Retrieved Components 10 | . 10 . . Parts Scanalyzed . | . . . . Part Schematics Acquired . | . . . . Parts Damaged . | . . . . Bothacking | -11 -10 -10 -8 ------------ Run | Yrd Mat Sub Mat Used RIF Installer . | . . . . Robots Hacked . | . . . . Non-combat . | . . . . Combat . | . . . . Robot Hacks Applied . | . . . . Relay Couplers Released . | . . . . Fabnet Peak Effective % . | . . . . Robots Rewired . | . . . . Allies Hacked . | . . . . Hacks Repelled . | . . . . Allies | -11 -10 -10 -8 -------- Run | Yrd Mat Sub Mat Total Allies . | . . . . Largest Group . | . . . . Highest-Rated Group . | . . . . Highest-Rated Ally . | . . . . Total Orders . | . . . . Ally Attacks . | . . . . Total Damage . | . . . . Kills . | . . . . Allies Corrupted . | . . . . Allies Melted . | . . . . Intel | -11 -10 -10 -8 ------- Run | Yrd Mat Sub Mat Active Infowar (turns) 1249 | . . . 1249 Optics 140 | . . . 140 Sensors 1110 | . . . 1110 Robot Analysis Total 2 | . 1 . 1 Derelict Logs Recovered 1 | . . 1 . Drone Launches . | . . . . Drone Recoveries . | . . . . Exploration | -11 -10 -10 -8 ------------- Run | Yrd Mat Sub Mat Turns Passed 3252 | 20 1048 813 1371 Spaces Moved 1094 | 10 453 246 385 Core 5 | . . . 5 Treads 1011 | 10 453 246 302 Legs . | . . . . Wheels 78 | . . . 78 Hover . | . . . . Flight . | . . . . Fastest Speed 50 | 160 160 320 50 Average Speed 257 | 160 194 320 294 Slowest Speed 1400 | 160 320 320 1400 Overloaded Moves . | . . . . Propulsion Burnouts . | . . . . Robots Hopped . | . . . . Potential Cave-ins . | . . . . Cave-ins Triggered . | . . . . Exploration Rate (%) 26 | 2 65 13 24 Regions Visited 3 Branch Regions 1 Pre-discovered Areas . | . . . . Known Exits Taken . | . . . . Unknown Exits Taken 3 | 1 1 1 . Scrap Searched . | . . . . Spaces Dug . | . . . . Terrain Destroyed . | . . . . Melee . | . . . . Projectile . | . . . . AOE . | . . . . Terrain Rammed . | . . . . Walls Destroyed . | . . . . Machines Disabled . | . . . . Actions | -11 -10 -10 -8 --------- Run | Yrd Mat Sub Mat Total 1372 | 14 542 255 561 Wait 121 | . 24 . 97 Move 1091 | 9 452 245 385 Hop . | . . . . Pick Up 32 | . 14 . 18 Fast Attach . | . . . . Attach 17 | 1 2 1 13 Detach 1 | . . . 1 Swap 10 | 2 4 . 4 Drop 12 | 2 3 . 7 Fire 86 | . 42 9 35 Melee 1 | . . . 1 Ram . | . . . . Kick . | . . . . Crush 1 | . 1 . . Escape Stasis . | . . . . Rewire . | . . . . Trap . | . . . . Miscellaneous . | . . . . Route ------- -11/Scrapyard -10/Materials (discovered 4 exits: [*Mat x2] / [*Min] / [*Sub]) -10/Subcaves -8/Materials History --------- Turn | Location | Event 7 | -11/Scrapyard | Discovered new exit (range 3) 21 | -11/Scrapyard | Entered Materials 148 | -10/Materials | Discovered new exit (range 11) 317 | -10/Materials | Build established: Mutant 563 | -10/Materials | Discovered new exit (range 10) 957 | -10/Materials | Discovered new exit (range 16) 967 | -10/Materials | Discovered new exit (range 8) 1069 | -10/Materials | Entered Subcaves 1103 | -10/Subcaves | Core integrity fell below 50% 1117 | -10/Subcaves | Core integrity fell below 20% 1309 | -10/Subcaves | Learned Materials garrison access intel 1423 | -10/Subcaves | A swath of the cavern ceiling suddenly collapsed 1537 | -10/Subcaves | Discovered new exit (range 15) 1882 | -10/Subcaves | Entered Materials 1882 | -8/Materials | Evolved 4 slots: Propulsion x2, Utility x2 1883 | -8/Materials | Loaded intel: 1 garrison access location 3237 | -8/Materials | Core integrity fell below 50% 3251 | -8/Materials | Core integrity fell below 20% 3253 | -8/Materials | Destroyed by X-57 Shotgunner with Shotgun Last Messages --------------- 03212_ Slug penetrates Wall. 03214_ K-01 Serf destroyed. 03216_ Penetrated by Slug. 03217_ Lgt. Treads destroyed. 03218_ Penetrated by Slug. 03218_ Ion Engine destroyed. 03218_ Knocked back. 03219_ Acquired 6 matter. 03219_ Hvy. Assault Rifle destroyed. 03236_ Com. Wheel destroyed. 03237_ W-25 Informer sends out distress signal. 03240_ Imp. Sensor Array destroyed. 03240_ U-05 Engineer builds a Wall. 03242_ Hacking Suite destroyed. 03248_ Hammer destroyed. 03250_ Dropped Huge Storage Unit. 03251_ U-05 Engineer builds a Wall. 03252_ Acquired 2 matter. 03252_ K-01 Serf collects debris. 03253_ U-05 Engineer destroyed. Map ----- +----------------------------------------------------+ | | | ?????????????????????????????????????????????????? | | ?????????????????????????????????????????????????? | | ?????????????????????????????????????????????????? | | ?????????????????????????????????????????????????? | | ?????????????????????????????????????????????????? | | ?????????????????????????????????????????????????? | | ?????????????????????????????????????????????????? | | ?????????????????????????????????????????????????? | | ????###??????????????????????????????????????????? | | #### !##?????????????????????????????????????????? | | # !#?????????????????????????????????????????? | | # !#?????????????????????????????????????????? | | + !#?????????????????????????????????????????? | | # !#?????????????????????????????????????????? | | # !##?????????????????????????????????????????? | | # ####??????????????????????????????????????????? | | # #############?????????????????????????????????? | | + # * #?????????????????????????????????? | | # # #?????????????????????????????????? | | # # #?????#######?????????????????????? | | # # """ """ #?????# ############## ??????? | | # # """ """ #?????# * k ?????? | | # + """ """ #?????# ] %w ?????? | | # # #????## !%%u = ?????? | | # #############????## %=@H#""#######????????????? | | # #########!=*########???????????????? | | # # !! #!x!# #???????????????? | | ! + # #!x!# """ #???????????????? | | # """ # +=*[+ """ #???????????????? | | #+### !!! """ # ""# !# """ #???????????????? | | # !! """ # T"# # #???????????????? | | "" # !! # ""# # / #???????????????? | | """ # # # # #???????????????? | | """ ################# # # "" #???????????????? | | """ #?##########????### # "" #???????????????? | | "" #?# #??????# # "T #???????????????? | | #?# """ ""#??????# # "" #???????????????? | | ####### """ T"#??????# # "" #???????????????? | | ### + """ ""#??????# # #???????????????? | | # #??????# ########???????????????? | | ### #!!! #??????# #??????????????????????? | | ??# #!! #??????# #??????????????????????? | | ??# # #??????# #??????????????????????? | | ??# # #??????# #??????????????????????? | | ### ###+###########?# #??????????????????????? | | #?# #??????????????????????? | | #?#! #??????????????????????? | | #?#[%[#??????????????????????? | | ################# #?# #??????????????????????? | +----------------------------------------------------+ Best States ------------- Heat Dissipation 41 Energy Generation 10 Energy Capacity 250 Matter Stores 300 Matter Capacity 300 Sight Range 20 Robot Scan Range 15 Terrain Scan Density 10 Evasion (%) 40 Recoil Reduction 4 Offensive Hacking 10 Item Schematics ----------------- None Robot Schematics ------------------ None Fabricated ------------ Nothing Repaired ---------- Nothing Studied --------- None Alien Tech Used ----------------- None Achievements -------------- None Challenges ------------ None Game ------ Seed SeismicGravitonLeg Manual? 0 Play Time 00:16:38 Cumulative 157.5 hours Start 2026.07.02 @ 16:42:15 End 2026.07.02 @ 16:56:24 Sessions 1 Manual Loads 0 Difficulty Rogue Special Mode None Game No. 217 Rogue 217 Adventurer 0 Explorer 0 Win Type - Total 1 Types 1/0/0/0/0/0/0/0/0/0 Lore% 51 Gallery% 54 Achievement% 32 Wizard Run 0 Options --------- Layout 1 ASCII 0 Keyboard 0 Movement Mouse Keybinds 1 Fullscreen 1 Font 24/Smallcaps Map View 50x35 Zoom Use 0% Tactical HUD 1 Map Filters NONE Filters NONE Steam 1 RUN: 70dd825b-3896-4f86-af13-e3177a6ef6ea